fUSD/lending_fUSD_20260605
["ID","MTS","AMOUNT","RATE_DAILY","PERIOD"]
[424180266,1780632645000,-284.914396,0.00015068,2]
[424180269,1780632645000,-284.914396,0.00015068,2]
[424180273,1780632645000,-284.914396,0.00015068,2]
[424180268,1780632645000,-284.914396,0.00015068,2]
[424180271,1780632645000,-284.914396,0.00015068,2]
[424180276,1780632645000,-284.914396,0.00015068,2]
[424180275,1780632645000,-284.914396,0.00015068,2]
[424180277,1780632645000,-284.914396,0.00015068,2]
[424180293,1780632645000,-2000.0,0.00015221,2]
[424180283,1780632645000,-681.07442116,0.0001522,2]
[424180285,1780632645000,-666.0,0.0001522,2]
[424180284,1780632645000,-300.0,0.0001522,2]
[424180280,1780632645000,-284.914396,0.00015068,2]
[424180281,1780632645000,-284.914396,0.00015068,2]
[424180279,1780632645000,-284.914396,0.00015068,2]
[424180287,1780632645000,-2000.0,0.00015221,2]
[424180286,1780632645000,-2000.0,0.00015221,2]
[424180288,1780632645000,-2000.0,0.00015221,2]
[424180289,1780632645000,-2000.0,0.00015221,2]
[424180290,1780632645000,-2000.0,0.00015221,2]
[424180291,1780632645000,-2000.0,0.00015221,2]
[424180257,1780632645000,-836.056228,0.00015,2]
[424180282,1780632645000,-168.39,0.00015106,2]
[424180260,1780632645000,-151.0,0.00015,2]
[424180248,1780632645000,-286.777986,0.00015,2]
[424180255,1780632645000,-836.056231,0.00015,2]
[424180292,1780632645000,-1816.21,0.00015221,2]
[424180234,1780632645000,-8098.65518294,0.00015,2]
[424180236,1780632645000,-7013.8716214,0.00015,7]
[424180235,1780632645000,-4912618.95349663,0.00015,2]
[424180239,1780632645000,-299.872565,0.00015,2]
[424180238,1780632645000,-151.0,0.00015,2]
[424180237,1780632645000,-151.0,0.00015,2]
[424180240,1780632645000,-185.96,0.00015,2]
[424180242,1780632645000,-151.0,0.00015,2]
[424180243,1780632645000,-151.0,0.00015,2]
[424180244,1780632645000,-151.0,0.00015,2]
[424180247,1780632645000,-242.001231,0.00015,2]
[424180245,1780632645000,-151.0,0.00015,2]
[424180261,1780632645000,-151.0,0.00015,2]
[424180246,1780632645000,-191.233345,0.00015,2]
[424180250,1780632645000,-836.056231,0.00015,2]
[424180251,1780632645000,-836.056231,0.00015,2]
[424180252,1780632645000,-836.056231,0.00015,2]
[424180241,1780632645000,-151.0,0.00015,2]
[424180254,1780632645000,-836.056231,0.00015,2]
[424180262,1780632645000,-192.63651089,0.00015,2]
[424180263,1780632645000,-340.0,0.00015068,2]
[424180253,1780632645000,-836.056231,0.00015,2]
[424180265,1780632645000,-900.0,0.00015068,2]
[424180264,1780632645000,-1038.0,0.00015068,2]
[424180259,1780632645000,-151.0,0.00015,2]
[424180258,1780632645000,-151.0,0.00015,2]
[424180256,1780632645000,-836.056231,0.00015,2]
[424180249,1780632645000,-162.178092,0.00015,2]
[424180298,1780632645000,-300.0,0.00015281,2]
[424180294,1780632645000,-2000.0,0.00015221,2]
[424180295,1780632645000,-1756.75,0.00015221,2]
[424180331,1780632645000,-1000.0,0.00015282,2]
[424180341,1780632645000,-1000.0,0.00015282,2]
[424180332,1780632645000,-1000.0,0.00015282,2]
[424180334,1780632645000,-1000.0,0.00015282,2]
[424180330,1780632645000,-1000.0,0.00015282,2]
[424180333,1780632645000,-1000.0,0.00015282,2]
[424180339,1780632645000,-1000.0,0.00015282,2]
[424180336,1780632645000,-1000.0,0.00015282,2]
[424180337,1780632645000,-1000.0,0.00015282,2]
[424180338,1780632645000,-1000.0,0.00015282,2]
[424180340,1780632645000,-1000.0,0.00015282,2]
[424180335,1780632645000,-1000.0,0.00015282,2]
[424180352,1780632645000,-1000.0,0.00015282,2]
[424180329,1780632645000,-1000.0,0.00015282,2]
[424180351,1780632645000,-1000.0,0.00015282,2]
[424180347,1780632645000,-1000.0,0.00015282,2]
[424180345,1780632645000,-1000.0,0.00015282,2]
[424180353,1780632645000,-1000.0,0.00015282,2]
[424180342,1780632645000,-1000.0,0.00015282,2]
[424180343,1780632645000,-1000.0,0.00015282,2]
[424180350,1780632645000,-1000.0,0.00015282,2]
[424180349,1780632645000,-1000.0,0.00015282,2]
[424180346,1780632645000,-1000.0,0.00015282,2]
[424180344,1780632645000,-1000.0,0.00015282,2]
[424180355,1780632645000,-1000.0,0.00015282,2]
[424180356,1780632645000,-1000.0,0.00015282,2]
[424180354,1780632645000,-1000.0,0.00015282,2]
[424180357,1780632645000,-299.57,0.00015282,2]
[424180348,1780632645000,-1000.0,0.00015282,2]
[424180328,1780632645000,-1000.0,0.00015282,2]
[424180358,1780632645000,-1000.0,0.00015282,2]
[424180324,1780632645000,-2000.0,0.00015282,2]
[424180326,1780632645000,-1500.29,0.00015282,2]
[424180301,1780632645000,-2000.0,0.00015282,2]
[424180302,1780632645000,-2000.0,0.00015282,2]
[424180303,1780632645000,-2000.0,0.00015282,2]
[424180299,1780632645000,-2000.0,0.00015282,2]
[424180296,1780632645000,-2000.0,0.00015221,2]
[424180300,1780632645000,-2000.0,0.00015282,2]
[424180297,1780632645000,-1454.05,0.00015221,2]
[424180313,1780632645000,-2000.0,0.00015282,2]
[424180314,1780632645000,-1851.16,0.00015282,2]
[424180315,1780632645000,-150.0,0.00015282,2]
[424180304,1780632645000,-2000.0,0.00015282,2]
[424180317,1780632645000,-2000.0,0.00015282,2]
[424180316,1780632645000,-2000.0,0.00015282,2]
[424180305,1780632645000,-2000.0,0.00015282,2]
[424180312,1780632645000,-2000.0,0.00015282,2]
[424180308,1780632645000,-2000.0,0.00015282,2]
[424180322,1780632645000,-500.49,0.00015282,2]
[424180327,1780632645000,-1000.0,0.00015282,2]
[424180319,1780632645000,-2000.0,0.00015282,2]
[424180320,1780632645000,-2000.0,0.00015282,2]
[424180318,1780632645000,-2000.0,0.00015282,2]
[424180325,1780632645000,-2000.0,0.00015282,2]
[424180323,1780632645000,-2000.0,0.00015282,2]
[424180311,1780632645000,-2000.0,0.00015282,2]
[424180309,1780632645000,-2000.0,0.00015282,2]
[424180306,1780632645000,-2000.0,0.00015282,2]
[424180310,1780632645000,-2000.0,0.00015282,2]
[424180321,1780632645000,-2000.0,0.00015282,2]
[424180396,1780632646000,-300.0,0.00016,2]
[424180401,1780632646000,-3292.0,0.00016186,2]
[424180400,1780632646000,-9999.99,0.00016116,2]
[424180398,1780632646000,-635.4481525,0.00016,2]
[424180397,1780632646000,-160.0,0.00016,3]
[424180384,1780632646000,-860.15,0.00015605,2]
[424180403,1780632646000,-552.67,0.00016438,2]
[424180393,1780632646000,-1500.0,0.000159,2]
[424180394,1780632646000,-500.0,0.00015952,2]
[424180392,1780632646000,-677.49,0.000159,2]
[424180399,1780632646000,-635.4481525,0.000161,2]
[424180395,1780632646000,-180.24347221,0.00016,2]
[424180402,1780632646000,-250.0,0.00016391,2]
[424180423,1780632646000,-1252.0,0.00017239,2]
[424180407,1780632646000,-153.088833,0.00016438,2]
[424180406,1780632646000,-151.0,0.00016438,2]
[424180408,1780632646000,-900.0,0.00016438,2]
[424180404,1780632646000,-1191.85,0.00016438,2]
[424180411,1780632646000,-1555.5,0.00016448,2]
[424180410,1780632646000,-230.52,0.00016438,2]
[424180409,1780632646000,-164.81782,0.00016438,2]
[424180413,1780632646000,-179.49505156,0.00016712,2]
[424180424,1780632646000,-244.89156754,0.00017252,2]
[424180412,1780632646000,-500.0,0.000165,2]
[424180416,1780632646000,-805.19,0.00016784,2]
[424180417,1780632646000,-1362.57,0.00016927,2]
[424180383,1780632646000,-860.15,0.00015605,2]
[424180405,1780632646000,-151.0,0.00016438,2]
[424180385,1780632646000,-860.14,0.00015607,2]
[424180373,1780632646000,-1000.0,0.00015282,2]
[424180386,1780632646000,-860.15,0.00015607,2]
[424180419,1780632646000,-1156.1,0.00016932,2]
[424180366,1780632646000,-1000.0,0.00015282,2]
[424180365,1780632646000,-1000.0,0.00015282,2]
[424180364,1780632646000,-1000.0,0.00015282,2]
[424180359,1780632646000,-1000.0,0.00015282,2]
[424180363,1780632646000,-1000.0,0.00015282,2]
[424180360,1780632646000,-1000.0,0.00015282,2]
[424180361,1780632646000,-1000.0,0.00015282,2]
[424180362,1780632646000,-1000.0,0.00015282,2]
[424180367,1780632646000,-1000.0,0.00015282,2]
[424180369,1780632646000,-1000.0,0.00015282,2]
[424180370,1780632646000,-624.82,0.00015282,2]
[424180378,1780632646000,-574.89,0.00015282,2]
[424180381,1780632646000,-860.15,0.00015603,2]
[424180375,1780632646000,-1000.0,0.00015282,2]
[424180368,1780632646000,-1000.0,0.00015282,2]
[424180376,1780632646000,-1000.0,0.00015282,2]
[424180377,1780632646000,-1000.0,0.00015282,2]
[424180374,1780632646000,-1000.0,0.00015282,2]
[424180372,1780632646000,-1000.0,0.00015282,2]
[424180380,1780632646000,-860.15,0.00015601,2]
[424180390,1780632646000,-500.0,0.00015837,2]
[424180389,1780632646000,-2000.0,0.00015837,2]
[424180391,1780632646000,-1038.0,0.0001589,2]
[424180387,1780632646000,-151.21239302,0.00015798,2]
[424180379,1780632646000,-860.15,0.00015599,2]
[424180388,1780632646000,-736.0,0.00015829,2]
[424180382,1780632646000,-860.15,0.00015603,2]
[424180371,1780632646000,-1000.0,0.00015282,2]
[424180418,1780632646000,-536.1,0.00016931,2]
[424180481,1780632646000,-500.0,0.00018638,2]
[424180415,1780632646000,-168.28,0.00016712,2]
[424180464,1780632646000,-10645.30346355,0.000183,2]
[424180455,1780632646000,-450.0,0.00018179,2]
[424180465,1780632646000,-7175.40989862,0.000183,2]
[424180466,1780632646000,-307.54965606,0.00018355,2]
[424180453,1780632646000,-450.0,0.00018179,2]
[424180457,1780632646000,-450.0,0.00018179,2]
[424180462,1780632646000,-1189.47881308,0.000182,2]
[424180461,1780632646000,-6858.99352657,0.000182,2]
[424180458,1780632646000,-450.0,0.00018179,2]
[424180456,1780632646000,-450.0,0.00018179,2]
[424180460,1780632646000,-162.0,0.00018179,2]
[424180463,1780632646000,-874.55314346,0.000182,2]
[424180479,1780632646000,-1068.96,0.000185,2]
[424180454,1780632646000,-450.0,0.00018179,2]
[424180474,1780632646000,-10645.30346355,0.000185,2]
[424180468,1780632646000,-89772.95,0.00018356,2]
[424180470,1780632646000,-1189.47881308,0.000184,2]
[424180473,1780632646000,-4473.9,0.0001841,2]
[424180478,1780632646000,-874.55314346,0.000185,2]
[424180471,1780632646000,-874.55314346,0.000184,2]
[424180469,1780632646000,-6858.99352657,0.000184,2]
[424180476,1780632646000,-7175.40989862,0.000185,2]
[424180472,1780632646000,-677.49,0.000184,2]
[424180475,1780632646000,-6858.99352657,0.000185,2]
[424180477,1780632646000,-1189.47881308,0.000185,2]
[424180480,1780632646000,-2000.0,0.00018638,2]
[424180482,1780632646000,-1798.80895522,0.0001864,2]
[424180414,1780632646000,-349.686589,0.00016712,2]
[424180467,1780632646000,-500.0,0.00018356,2]
[424180447,1780632646000,-10645.30346355,0.000181,2]
[424180459,1780632646000,-450.0,0.00018179,2]
[424180444,1780632646000,-874.55314346,0.00018,2]
[424180446,1780632646000,-1734.62772924,0.00018092,2]
[424180422,1780632646000,-601.0,0.00017151,2]
[424180420,1780632646000,-1613.0535,0.00016996,2]
[424180425,1780632646000,-169.63,0.00017347,2]
[424180426,1780632646000,-169.63,0.00017347,2]
[424180429,1780632646000,-1672.7364795,0.00017544,2]
[424180428,1780632646000,-7988.0267982,0.00017538,2]
[424180427,1780632646000,-1120.34,0.00017425,2]
[424180431,1780632646000,-10645.30346355,0.000176,2]
[424180430,1780632646000,-151.0,0.00017596,2]
[424180438,1780632646000,-300.0,0.00017999,2]
[424180436,1780632646000,-202.83347243,0.000178,2]
[424180433,1780632646000,-152.95,0.000178,2]
[424180432,1780632646000,-7175.40989862,0.000176,2]
[424180421,1780632646000,-500.0,0.00017048,2]
[424180435,1780632646000,-7175.40989862,0.000178,2]
[424180434,1780632646000,-10645.30346355,0.000178,2]
[424180443,1780632646000,-1189.47881308,0.00018,2]
[424180449,1780632646000,-168.39,0.00018127,2]
[424180441,1780632646000,-6858.99352657,0.00018,2]
[424180442,1780632646000,-7175.40989862,0.00018,2]
[424180439,1780632646000,-350.0,0.00018,2]
[424180450,1780632646000,-169.12885323,0.00018144,2]
[424180445,1780632646000,-1084.59,0.00018082,2]
[424180448,1780632646000,-7175.40989862,0.000181,2]
[424180451,1780632646000,-450.0,0.00018179,2]
[424180440,1780632646000,-10645.30346355,0.00018,2]
[424180437,1780632646000,-4609.0,0.00017805,2]
[424180452,1780632646000,-450.0,0.00018179,2]
[424180524,1780632647000,-151.0,0.00019178,2]
[424180521,1780632647000,-150.0,0.00019178,2]
[424180520,1780632647000,-150.0,0.00019178,2]
[424180518,1780632647000,-284.914391,0.00019178,2]
[424180530,1780632647000,-188.016442,0.00019178,2]
[424180528,1780632647000,-188.016442,0.00019178,2]
[424180519,1780632647000,-150.0,0.00019178,2]
[424180509,1780632647000,-150.0,0.00019008,2]
[424180516,1780632647000,-284.914396,0.00019178,2]
[424180511,1780632647000,-10645.30346355,0.000191,2]
[424180525,1780632647000,-188.016442,0.00019178,2]
[424180529,1780632647000,-188.016442,0.00019178,2]
[424180522,1780632647000,-216.97782793,0.00019178,2]
[424180534,1780632647000,-188.016442,0.00019178,2]
[424180527,1780632647000,-188.016442,0.00019178,2]
[424180526,1780632647000,-188.016442,0.00019178,2]
[424180531,1780632647000,-188.016442,0.00019178,2]
[424180533,1780632647000,-188.016442,0.00019178,2]
[424180535,1780632647000,-188.016442,0.00019178,2]
[424180538,1780632647000,-188.016442,0.00019178,2]
[424180532,1780632647000,-188.016442,0.00019178,2]
[424180539,1780632647000,-188.016442,0.00019178,2]
[424180540,1780632647000,-188.016442,0.00019178,2]
[424180537,1780632647000,-188.016442,0.00019178,2]
[424180536,1780632647000,-188.016442,0.00019178,2]
[424180542,1780632647000,-188.016442,0.00019178,2]
[424180515,1780632647000,-284.914396,0.00019178,2]
[424180523,1780632647000,-151.0,0.00019178,2]
[424180514,1780632647000,-7175.40989862,0.000191,2]
[424180543,1780632647000,-188.016442,0.00019178,2]
[424180513,1780632647000,-1189.47881308,0.000191,2]
[424180483,1780632647000,-10645.30346355,0.000187,2]
[424180484,1780632647000,-6858.99352657,0.000187,2]
[424180487,1780632647000,-874.55314346,0.000187,2]
[424180485,1780632647000,-1189.47881308,0.000187,2]
[424180486,1780632647000,-7175.40989862,0.000187,2]
[424180488,1780632647000,-400.0,0.00018735,2]
[424180489,1780632647000,-400.0,0.00018735,2]
[424180492,1780632647000,-400.0,0.00018735,2]
[424180490,1780632647000,-400.0,0.00018735,2]
[424180491,1780632647000,-400.0,0.00018735,2]
[424180494,1780632647000,-400.0,0.00018735,2]
[424180500,1780632647000,-1189.47881308,0.000189,2]
[424180502,1780632647000,-1048.83,0.00018904,2]
[424180508,1780632647000,-153.89720939,0.00019,2]
[424180501,1780632647000,-7175.40989862,0.000189,2]
[424180496,1780632647000,-351.0,0.00018735,2]
[424180495,1780632647000,-400.0,0.00018735,2]
[424180505,1780632647000,-277.92638462,0.00018934,2]
[424180503,1780632647000,-150.0,0.00018934,2]
[424180497,1780632647000,-2129.0,0.00018784,2]
[424180493,1780632647000,-400.0,0.00018735,2]
[424180498,1780632647000,-10645.30346355,0.000189,2]
[424180499,1780632647000,-6858.99352657,0.000189,2]
[424180506,1780632647000,-60406.33124803,0.00019,2]
[424180507,1780632647000,-19488.60681115,0.00019,2]
[424180517,1780632647000,-284.914396,0.00019178,2]
[424180510,1780632647000,-175.0,0.00019008,2]
[424180512,1780632647000,-6858.99352657,0.000191,2]
[424180504,1780632647000,-150.0,0.00018934,2]
[424180545,1780632647000,-553.422542,0.00019178,2]
[424180541,1780632647000,-188.016442,0.00019178,2]
[424180544,1780632647000,-188.016444,0.00019178,2]
[424180580,1780632647000,-500.0,0.00019272,2]
[424180578,1780632647000,-162.094179,0.00019178,2]
[424180581,1780632647000,-10645.30346355,0.000193,2]
[424180584,1780632647000,-7175.40989862,0.000193,2]
[424180583,1780632647000,-1189.47881308,0.000193,2]
[424180585,1780632647000,-151.0,0.000193,2]
[424180587,1780632647000,-1444.0,0.00019452,2]
[424180590,1780632647000,-6858.99352657,0.000195,2]
[424180582,1780632647000,-6858.99352657,0.000193,2]
[424180586,1780632647000,-151.0,0.000193,2]
[424180589,1780632647000,-10645.30346355,0.000195,2]
[424180591,1780632647000,-1189.47881308,0.000195,2]
[424180593,1780632647000,-842.923,0.00019546,2]
[424180579,1780632647000,-1865.36488656,0.00019188,2]
[424180594,1780632647000,-943.4013006,0.00019556,2]
[424180588,1780632647000,-151.0,0.00019452,2]
[424180596,1780632647000,-10645.30346355,0.000196,2]
[424180606,1780632647000,-268.9,0.0002,8]
[424180599,1780632647000,-1189.47881308,0.000197,2]
[424180600,1780632647000,-1934.38338736,0.00019736,2]
[424180602,1780632647000,-274.30913045,0.000199,2]
[424180605,1780632647000,-1500.0,0.0002,2]
[424180597,1780632647000,-168.28,0.00019658,2]
[424180601,1780632647000,-500.0,0.0001982,2]
[424180604,1780632647000,-2999.999999,0.0002,2]
[424180603,1780632647000,-188.18181189,0.000199,2]
[424180598,1780632647000,-6858.99352657,0.000197,2]
[424180556,1780632647000,-553.422542,0.00019178,2]
[424180592,1780632647000,-500.0,0.00019546,2]
[424180576,1780632647000,-151.0,0.00019178,2]
[424180595,1780632647000,-6453.0,0.00019585,2]
[424180577,1780632647000,-151.0,0.00019178,2]
[424180575,1780632647000,-151.0,0.00019178,2]
[424180557,1780632647000,-553.422542,0.00019178,2]
[424180555,1780632647000,-553.422542,0.00019178,2]
[424180607,1780632647000,-400.0,0.0002,2]
[424180546,1780632647000,-553.422542,0.00019178,2]
[424180552,1780632647000,-553.422542,0.00019178,2]
[424180547,1780632647000,-553.422542,0.00019178,2]
[424180551,1780632647000,-553.422542,0.00019178,2]
[424180553,1780632647000,-553.422542,0.00019178,2]
[424180550,1780632647000,-553.422542,0.00019178,2]
[424180549,1780632647000,-553.422542,0.00019178,2]
[424180548,1780632647000,-553.422542,0.00019178,2]
[424180561,1780632647000,-553.422542,0.00019178,2]
[424180560,1780632647000,-553.422542,0.00019178,2]
[424180554,1780632647000,-553.422542,0.00019178,2]
[424180565,1780632647000,-151.0,0.00019178,2]
[424180558,1780632647000,-553.422542,0.00019178,2]
[424180574,1780632647000,-151.0,0.00019178,2]
[424180572,1780632647000,-151.0,0.00019178,2]
[424180573,1780632647000,-151.0,0.00019178,2]
[424180570,1780632647000,-151.0,0.00019178,2]
[424180568,1780632647000,-151.0,0.00019178,2]
[424180567,1780632647000,-151.0,0.00019178,2]
[424180571,1780632647000,-151.0,0.00019178,2]
[424180559,1780632647000,-553.422542,0.00019178,2]
[424180566,1780632647000,-151.0,0.00019178,2]
[424180564,1780632647000,-553.422538,0.00019178,2]
[424180569,1780632647000,-151.0,0.00019178,2]
[424180562,1780632647000,-553.422542,0.00019178,2]
[424180563,1780632647000,-553.422542,0.00019178,2]
[424180637,1780632648000,-500.0,0.00020094,2]
[424180636,1780632648000,-500.0,0.00020094,2]
[424180639,1780632648000,-500.0,0.00020094,2]
[424180638,1780632648000,-500.0,0.00020094,2]
[424180641,1780632648000,-423.51822738,0.000202,2]
[424180642,1780632648000,-677.49,0.000202,2]
[424180644,1780632648000,-2005.9555727,0.00020284,2]
[424180643,1780632648000,-219.34,0.00020261,2]
[424180634,1780632648000,-284.76807103,0.00020033,2]
[424180640,1780632648000,-1444.0,0.00020136,2]
[424180657,1780632648000,-423.51822738,0.000206,2]
[424180646,1780632648000,-423.51822738,0.000204,2]
[424180654,1780632648000,-150.0,0.0002058,2]
[424180656,1780632648000,-210.5012832,0.00020587,2]
[424180655,1780632648000,-150.39120637,0.0002058,2]
[424180645,1780632648000,-4473.9,0.00020381,2]
[424180647,1780632648000,-3620.0,0.00020451,2]
[424180649,1780632648000,-150.0,0.0002058,2]
[424180648,1780632648000,-21873.0,0.00020548,2]
[424180633,1780632648000,-2555.0,0.0002,2]
[424180652,1780632648000,-150.0,0.0002058,2]
[424180635,1780632648000,-1013.08,0.00020055,2]
[424180627,1780632648000,-1139.0,0.0002,2]
[424180615,1780632648000,-588.0,0.0002,2]
[424180624,1780632648000,-176.35814966,0.0002,2]
[424180651,1780632648000,-150.0,0.0002058,2]
[424180610,1780632648000,-2091.0,0.0002,2]
[424180609,1780632648000,-216.0,0.0002,2]
[424180611,1780632648000,-423.51822738,0.0002,2]
[424180618,1780632648000,-1001.0,0.0002,2]
[424180613,1780632648000,-951.0,0.0002,2]
[424180608,1780632648000,-426.0,0.0002,2]
[424180617,1780632648000,-1208.931296,0.0002,2]
[424180612,1780632648000,-688.0,0.0002,2]
[424180614,1780632648000,-1144.0,0.0002,2]
[424180626,1780632648000,-733.0,0.0002,2]
[424180616,1780632648000,-3302.0,0.0002,2]
[424180621,1780632648000,-176.35814966,0.0002,2]
[424180622,1780632648000,-176.35814966,0.0002,2]
[424180629,1780632648000,-531.0,0.0002,2]
[424180623,1780632648000,-176.35814966,0.0002,2]
[424180625,1780632648000,-176.35814967,0.0002,2]
[424180631,1780632648000,-3108.0,0.0002,2]
[424180632,1780632648000,-15364.33,0.0002,2]
[424180630,1780632648000,-2760.0,0.0002,2]
[424180620,1780632648000,-535.0,0.0002,2]
[424180628,1780632648000,-4649.0,0.0002,2]
[424180619,1780632648000,-1818.0,0.0002,2]
[424180650,1780632648000,-150.0,0.0002058,2]
[424180661,1780632648000,-151.0,0.00020832,2]
[424180658,1780632648000,-423.51822738,0.000208,2]
[424180687,1780632648000,-500.0,0.00020832,2]
[424180685,1780632648000,-151.0,0.00020832,2]
[424180688,1780632648000,-151.0,0.00020832,2]
[424180689,1780632648000,-151.0,0.00020832,2]
[424180690,1780632648000,-500.0,0.00020832,2]
[424180695,1780632648000,-151.0,0.00020832,2]
[424180694,1780632648000,-151.0,0.00020832,2]
[424180691,1780632648000,-151.0,0.00020832,2]
[424180692,1780632648000,-151.0,0.00020832,2]
[424180693,1780632648000,-500.0,0.00020832,2]
[424180686,1780632648000,-151.0,0.00020832,2]
[424180699,1780632648000,-500.0,0.00020832,2]
[424180698,1780632648000,-151.0,0.00020832,2]
[424180701,1780632648000,-151.0,0.00020832,2]
[424180700,1780632648000,-151.0,0.00020832,2]
[424180702,1780632648000,-500.0,0.00020832,2]
[424180703,1780632648000,-500.0,0.00020832,2]
[424180704,1780632648000,-500.0,0.00020832,2]
[424180707,1780632648000,-1548.0,0.00020878,2]
[424180705,1780632648000,-1548.0,0.00020878,2]
[424180706,1780632648000,-1548.0,0.00020878,2]
[424180653,1780632648000,-150.0,0.0002058,2]
[424180697,1780632648000,-151.0,0.00020832,2]
[424180684,1780632648000,-500.0,0.00020832,2]
[424180696,1780632648000,-500.0,0.00020832,2]
[424180677,1780632648000,-500.0,0.00020832,2]
[424180659,1780632648000,-1444.0,0.00020821,2]
[424180683,1780632648000,-151.0,0.00020832,2]
[424180665,1780632648000,-151.0,0.00020832,2]
[424180662,1780632648000,-151.0,0.00020832,2]
[424180663,1780632648000,-151.0,0.00020832,2]
[424180660,1780632648000,-200.0,0.00020832,2]
[424180664,1780632648000,-151.0,0.00020832,2]
[424180666,1780632648000,-151.0,0.00020832,2]
[424180670,1780632648000,-151.0,0.00020832,2]
[424180667,1780632648000,-151.0,0.00020832,2]
[424180668,1780632648000,-2080.17592889,0.00020832,2]
[424180669,1780632648000,-151.0,0.00020832,2]
[424180672,1780632648000,-151.0,0.00020832,2]
[424180673,1780632648000,-151.0,0.00020832,2]
[424180671,1780632648000,-151.0,0.00020832,2]
[424180676,1780632648000,-151.0,0.00020832,2]
[424180681,1780632648000,-500.0,0.00020832,2]
[424180675,1780632648000,-151.0,0.00020832,2]
[424180674,1780632648000,-151.0,0.00020832,2]
[424180678,1780632648000,-151.0,0.00020832,2]
[424180680,1780632648000,-151.0,0.00020832,2]
[424180679,1780632648000,-151.0,0.00020832,2]
[424180682,1780632648000,-151.0,0.00020832,2]
[424180752,1780632649000,-4775.8,0.0002137,2]
[424180745,1780632649000,-2760.0,0.00021,2]
[424180743,1780632649000,-1139.0,0.00021,2]
[424180744,1780632649000,-531.0,0.00021,2]
[424180742,1780632649000,-733.0,0.00021,2]
[424180732,1780632649000,-210.98513345,0.00021,2]
[424180741,1780632649000,-535.0,0.00021,2]
[424180738,1780632649000,-1208.931296,0.00021,2]
[424180734,1780632649000,-2091.0,0.00021,2]
[424180749,1780632649000,-297.76,0.00021145,2]
[424180740,1780632649000,-1818.0,0.00021,2]
[424180751,1780632649000,-4049.35,0.00021273,2]
[424180758,1780632649000,-1444.0,0.00021506,2]
[424180746,1780632649000,-2555.0,0.00021,2]
[424180748,1780632649000,-12882.54,0.00021145,2]
[424180747,1780632649000,-6144.97,0.00021145,2]
[424180750,1780632649000,-805.19,0.00021222,2]
[424180755,1780632649000,-151.0,0.0002138,2]
[424180754,1780632649000,-2157.14243826,0.0002138,2]
[424180756,1780632649000,-2008.72724108,0.00021439,2]
[424180757,1780632649000,-500.0,0.00021439,2]
[424180759,1780632649000,-1000.70991142,0.00021543,5]
[424180760,1780632649000,-1058.47386341,0.00021543,5]
[424180763,1780632649000,-1083.34561034,0.00021543,5]
[424180739,1780632649000,-1001.0,0.00021,2]
[424180753,1780632649000,-200.0,0.0002138,2]
[424180737,1780632649000,-3302.0,0.00021,2]
[424180708,1780632649000,-1548.0,0.00020878,2]
[424180735,1780632649000,-688.0,0.00021,2]
[424180762,1780632649000,-1084.60334332,0.00021543,5]
[424180709,1780632649000,-1548.0,0.00020878,2]
[424180719,1780632649000,-152.0,0.00020878,2]